fUSD/lending_fUSD_20260614
["ID","MTS","AMOUNT","RATE_DAILY","PERIOD"]
[424980488,1781367082000,-156.91337517,0.000325,14]
[424980490,1781367082000,-200.0,0.000325,120]
[424980491,1781367082000,-563.01034303,0.00032501,2]
[424980501,1781367082000,-151.0,0.0003255,2]
[424980494,1781367082000,-573.32,0.00032508,2]
[424980492,1781367082000,-396.17,0.00032505,2]
[424980493,1781367082000,-151.0,0.00032508,2]
[424980495,1781367082000,-185.12,0.00032509,2]
[424980500,1781367082000,-1734.44,0.00032536,2]
[424980496,1781367082000,-185.11,0.00032509,2]
[424980499,1781367082000,-10628.09,0.00032534,6]
[424980517,1781367082000,-1243.916,0.000326,20]
[424980521,1781367082000,-613.2,0.000326,7]
[424980524,1781367082000,-2617.91,0.0003262,4]
[424980544,1781367082000,-1106.62487678,0.00032808,7]
[424980545,1781367082000,-1057.11254737,0.00032808,2]
[424980546,1781367082000,-1168.9146163,0.00032808,7]
[424980547,1781367082000,-1186.65923359,0.00032808,7]
[424980550,1781367082000,-1420.01211601,0.00032808,7]
[424980548,1781367082000,-1748.11075419,0.00032808,7]
[424980557,1781367082000,-1237.0772233,0.00032813,7]
[424980554,1781367082000,-1204.3490221,0.00032808,7]
[424980549,1781367082000,-1128.05371833,0.00032808,7]
[424980555,1781367082000,-1187.97341437,0.00032809,7]
[424980558,1781367082000,-1188.56860358,0.00032813,7]
[424980553,1781367082000,-1071.14400789,0.00032808,7]
[424980552,1781367082000,-1087.13315251,0.00032808,7]
[424980556,1781367082000,-1187.52522952,0.00032809,7]
[424980560,1781367082000,-1076.05747055,0.0003282,7]
[424980520,1781367082000,-154.33729623,0.000326,30]
[424980559,1781367082000,-1195.42418363,0.0003282,7]
[424980543,1781367082000,-1068.61718809,0.00032808,7]
[424980542,1781367082000,-1117.76996376,0.00032808,7]
[424980551,1781367082000,-1931.0263878,0.00032808,7]
[424980541,1781367082000,-1399.29937693,0.00032805,120]
[424980518,1781367082000,-1243.91,0.000326,30]
[424980540,1781367082000,-32043.0,0.000328,30]
[424980525,1781367082000,-775.75,0.00032628,30]
[424980526,1781367082000,-563.01034303,0.00032638,2]
[424980530,1781367082000,-310.0,0.00032746,3]
[424980529,1781367082000,-213.00558772,0.00032708,14]
[424980527,1781367082000,-387.10616791,0.00032688,120]
[424980531,1781367082000,-10838.0,0.00032749,10]
[424980528,1781367082000,-5000.0,0.000327,60]
[424980532,1781367082000,-298.38688076,0.00032764,120]
[424980533,1781367082000,-372.01466945,0.000328,7]
[424980535,1781367082000,-16315.663,0.000328,30]
[424980539,1781367082000,-151.0,0.000328,7]
[424980536,1781367082000,-16315.66,0.000328,10]
[424980537,1781367082000,-2110.0,0.000328,2]
[424980534,1781367082000,-277.73105165,0.000328,30]
[424980538,1781367082000,-4930.16972818,0.000328,2]
[424980583,1781367083000,-500.0,0.00032876,2]
[424980597,1781367083000,-500.0,0.00032876,2]
[424980594,1781367083000,-500.0,0.00032876,2]
[424980600,1781367083000,-500.0,0.00032876,2]
[424980588,1781367083000,-500.0,0.00032876,2]
[424980592,1781367083000,-500.0,0.00032876,2]
[424980591,1781367083000,-500.0,0.00032876,2]
[424980589,1781367083000,-500.0,0.00032876,2]
[424980593,1781367083000,-500.0,0.00032876,2]
[424980599,1781367083000,-500.0,0.00032876,2]
[424980596,1781367083000,-500.0,0.00032876,2]
[424980605,1781367083000,-530.73121558,0.00032876,2]
[424980598,1781367083000,-500.0,0.00032876,2]
[424980601,1781367083000,-500.0,0.00032876,2]
[424980602,1781367083000,-500.0,0.00032876,2]
[424980606,1781367083000,-500.0,0.00032876,2]
[424980607,1781367083000,-500.0,0.00032876,2]
[424980609,1781367083000,-500.0,0.00032876,2]
[424980608,1781367083000,-500.0,0.00032876,2]
[424980603,1781367083000,-500.0,0.00032876,2]
[424980611,1781367083000,-500.0,0.00032876,2]
[424980587,1781367083000,-500.0,0.00032876,2]
[424980595,1781367083000,-500.0,0.00032876,2]
[424980586,1781367083000,-500.0,0.00032876,2]
[424980569,1781367083000,-201.0,0.0003286,30]
[424980590,1781367083000,-500.0,0.00032876,2]
[424980604,1781367083000,-500.0,0.00032876,2]
[424980561,1781367083000,-205.04995436,0.00032834,34]
[424980562,1781367083000,-205.04995436,0.00032834,30]
[424980565,1781367083000,-168.3888056,0.00032834,30]
[424980563,1781367083000,-162.380719,0.00032834,34]
[424980566,1781367083000,-272.93901,0.00032834,30]
[424980564,1781367083000,-272.93901,0.00032834,34]
[424980568,1781367083000,-557.5788265,0.00032834,30]
[424980567,1781367083000,-537.6845,0.00032834,34]
[424980570,1781367083000,-613.01,0.00032866,14]
[424980572,1781367083000,-500.0,0.00032876,2]
[424980574,1781367083000,-536.75119107,0.00032876,2]
[424980575,1781367083000,-500.0,0.00032876,2]
[424980571,1781367083000,-205.04995436,0.00032872,2]
[424980573,1781367083000,-500.0,0.00032876,2]
[424980577,1781367083000,-500.0,0.00032876,2]
[424980578,1781367083000,-500.0,0.00032876,2]
[424980576,1781367083000,-500.0,0.00032876,2]
[424980580,1781367083000,-500.0,0.00032876,2]
[424980579,1781367083000,-489.12735406,0.00032876,2]
[424980582,1781367083000,-500.0,0.00032876,2]
[424980584,1781367083000,-500.0,0.00032876,2]
[424980581,1781367083000,-512.99797888,0.00032876,2]
[424980585,1781367083000,-500.0,0.00032876,2]
[424980610,1781367083000,-500.0,0.00032876,2]
[424980658,1781367083000,-151.0,0.00032877,7]
[424980613,1781367083000,-500.0,0.00032876,2]
[424980639,1781367083000,-500.0,0.00032876,2]
[424980637,1781367083000,-200.0,0.00032876,2]
[424980638,1781367083000,-500.0,0.00032876,2]
[424980641,1781367083000,-500.0,0.00032876,2]
[424980645,1781367083000,-195.527121,0.00032877,7]
[424980649,1781367083000,-1000.0,0.00032877,10]
[424980647,1781367083000,-1000.0,0.00032877,10]
[424980648,1781367083000,-1000.0,0.00032877,10]
[424980651,1781367083000,-1000.0,0.00032877,10]
[424980650,1781367083000,-1000.0,0.00032877,10]
[424980653,1781367083000,-1000.0,0.00032877,10]
[424980652,1781367083000,-1000.0,0.00032877,10]
[424980654,1781367083000,-606.0,0.00032877,10]
[424980655,1781367083000,-151.0,0.00032877,7]
[424980660,1781367083000,-151.0,0.00032877,7]
[424980656,1781367083000,-185.373249,0.00032877,7]
[424980661,1781367083000,-287.985403,0.00032877,7]
[424980657,1781367083000,-151.0,0.00032877,7]
[424980663,1781367083000,-280.54004,0.00032877,7]
[424980662,1781367083000,-151.0,0.00032877,7]
[424980659,1781367083000,-182.526252,0.00032877,7]
[424980664,1781367083000,-151.0,0.00032877,7]
[424980612,1781367083000,-500.0,0.00032876,2]
[424980643,1781367083000,-500.0,0.00032876,2]
[424980642,1781367083000,-500.0,0.00032876,2]
[424980646,1781367083000,-178.822532,0.00032877,7]
[424980640,1781367083000,-500.0,0.00032876,2]
[424980644,1781367083000,-432.36195616,0.00032876,2]
[424980614,1781367083000,-500.0,0.00032876,2]
[424980617,1781367083000,-500.0,0.00032876,2]
[424980619,1781367083000,-500.0,0.00032876,2]
[424980615,1781367083000,-500.0,0.00032876,2]
[424980620,1781367083000,-500.0,0.00032876,2]
[424980621,1781367083000,-500.0,0.00032876,2]
[424980618,1781367083000,-500.0,0.00032876,2]
[424980616,1781367083000,-500.0,0.00032876,2]
[424980623,1781367083000,-296.8733965,0.00032876,2]
[424980627,1781367083000,-500.0,0.00032876,2]
[424980633,1781367083000,-500.0,0.00032876,2]
[424980622,1781367083000,-500.0,0.00032876,2]
[424980628,1781367083000,-500.0,0.00032876,2]
[424980631,1781367083000,-500.0,0.00032876,2]
[424980636,1781367083000,-500.0,0.00032876,2]
[424980635,1781367083000,-500.0,0.00032876,2]
[424980624,1781367083000,-500.0,0.00032876,2]
[424980632,1781367083000,-500.0,0.00032876,2]
[424980634,1781367083000,-500.0,0.00032876,2]
[424980626,1781367083000,-500.0,0.00032876,2]
[424980625,1781367083000,-500.0,0.00032876,2]
[424980630,1781367083000,-500.0,0.00032876,2]
[424980629,1781367083000,-500.0,0.00032876,2]
[424980701,1781367084000,-154.879517,0.00032877,7]
[424980693,1781367084000,-589.102583,0.00032877,7]
[424980694,1781367084000,-151.0,0.00032877,7]
[424980700,1781367084000,-151.0,0.00032877,7]
[424980696,1781367084000,-151.0,0.00032877,7]
[424980698,1781367084000,-151.0,0.00032877,7]
[424980704,1781367084000,-151.0,0.00032877,7]
[424980690,1781367084000,-589.102578,0.00032877,7]
[424980695,1781367084000,-151.0,0.00032877,7]
[424980703,1781367084000,-151.0,0.00032877,7]
[424980699,1781367084000,-284.904415,0.00032877,7]
[424980710,1781367084000,-343.006927,0.00032877,7]
[424980706,1781367084000,-151.0,0.00032877,7]
[424980705,1781367084000,-151.0,0.00032877,7]
[424980708,1781367084000,-151.0,0.00032877,7]
[424980709,1781367084000,-158.432938,0.00032877,7]
[424980715,1781367084000,-343.006927,0.00032877,7]
[424980707,1781367084000,-151.0,0.00032877,7]
[424980713,1781367084000,-343.006927,0.00032877,7]
[424980714,1781367084000,-343.006927,0.00032877,7]
[424980712,1781367084000,-343.006927,0.00032877,7]
[424980689,1781367084000,-589.102578,0.00032877,7]
[424980702,1781367084000,-151.0,0.00032877,7]
[424980688,1781367084000,-589.102578,0.00032877,7]
[424980711,1781367084000,-343.006927,0.00032877,7]
[424980692,1781367084000,-589.102578,0.00032877,7]
[424980666,1781367084000,-151.0,0.00032877,7]
[424980667,1781367084000,-151.0,0.00032877,7]
[424980665,1781367084000,-151.0,0.00032877,7]
[424980669,1781367084000,-151.0,0.00032877,7]
[424980670,1781367084000,-202.387771,0.00032877,7]
[424980668,1781367084000,-151.0,0.00032877,7]
[424980673,1781367084000,-151.0,0.00032877,2]
[424980671,1781367084000,-151.0,0.00032877,2]
[424980672,1781367084000,-589.102578,0.00032877,7]
[424980682,1781367084000,-589.102578,0.00032877,7]
[424980683,1781367084000,-589.102578,0.00032877,7]
[424980681,1781367084000,-589.102578,0.00032877,7]
[424980680,1781367084000,-589.102578,0.00032877,7]
[424980679,1781367084000,-589.102578,0.00032877,7]
[424980675,1781367084000,-192.608257,0.00032877,2]
[424980674,1781367084000,-589.102578,0.00032877,7]
[424980678,1781367084000,-589.102578,0.00032877,7]
[424980676,1781367084000,-589.102578,0.00032877,7]
[424980677,1781367084000,-589.102578,0.00032877,7]
[424980684,1781367084000,-589.102578,0.00032877,7]
[424980686,1781367084000,-589.102578,0.00032877,7]
[424980685,1781367084000,-589.102578,0.00032877,7]
[424980687,1781367084000,-589.102578,0.00032877,7]
[424980691,1781367084000,-589.102578,0.00032877,7]
[424980716,1781367084000,-343.006927,0.00032877,7]
[424980697,1781367084000,-211.211657,0.00032877,7]
[424980719,1781367084000,-343.006927,0.00032877,7]
[424980740,1781367084000,-151.0,0.00032877,7]
[424980739,1781367084000,-151.0,0.00032877,7]
[424980742,1781367084000,-151.0,0.00032877,7]
[424980748,1781367084000,-151.0,0.00032877,7]
[424980756,1781367084000,-250.625359,0.00032877,7]
[424980755,1781367084000,-250.625359,0.00032877,7]
[424980751,1781367084000,-151.0,0.00032877,7]
[424980753,1781367084000,-606.22314966,0.00032877,2]
[424980757,1781367084000,-250.625359,0.00032877,7]
[424980754,1781367084000,-351.62,0.00032877,2]
[424980749,1781367084000,-151.0,0.00032877,7]
[424980752,1781367084000,-231.818796,0.00032877,7]
[424980763,1781367084000,-250.625359,0.00032877,7]
[424980765,1781367084000,-250.625359,0.00032877,7]
[424980767,1781367084000,-250.625359,0.00032877,7]
[424980759,1781367084000,-250.625359,0.00032877,7]
[424980760,1781367084000,-250.625359,0.00032877,7]
[424980762,1781367084000,-250.625359,0.00032877,7]
[424980758,1781367084000,-250.625359,0.00032877,7]
[424980761,1781367084000,-250.625359,0.00032877,7]
[424980768,1781367084000,-250.625359,0.00032877,7]
[424980764,1781367084000,-250.625359,0.00032877,7]
[424980720,1781367084000,-343.006927,0.00032877,7]
[424980743,1781367084000,-151.0,0.00032877,7]
[424980741,1781367084000,-151.0,0.00032877,7]
[424980750,1781367084000,-151.0,0.00032877,7]
[424980747,1781367084000,-151.0,0.00032877,7]
[424980738,1781367084000,-151.0,0.00032877,7]
[424980718,1781367084000,-343.006927,0.00032877,7]
[424980726,1781367084000,-343.006927,0.00032877,7]
[424980717,1781367084000,-343.006927,0.00032877,7]
[424980724,1781367084000,-343.006927,0.00032877,7]
[424980722,1781367084000,-343.006927,0.00032877,7]
[424980721,1781367084000,-343.006927,0.00032877,7]
[424980725,1781367084000,-343.006927,0.00032877,7]
[424980728,1781367084000,-343.006927,0.00032877,7]
[424980727,1781367084000,-343.006927,0.00032877,7]
[424980729,1781367084000,-343.006936,0.00032877,7]
[424980734,1781367084000,-151.0,0.00032877,7]
[424980723,1781367084000,-343.006927,0.00032877,7]
[424980737,1781367084000,-151.0,0.00032877,7]
[424980730,1781367084000,-151.0,0.00032877,7]
[424980735,1781367084000,-245.472134,0.00032877,7]
[424980766,1781367084000,-250.625359,0.00032877,7]
[424980736,1781367084000,-151.0,0.00032877,7]
[424980731,1781367084000,-151.0,0.00032877,7]
[424980733,1781367084000,-151.0,0.00032877,7]
[424980744,1781367084000,-151.0,0.00032877,7]
[424980745,1781367084000,-151.0,0.00032877,7]
[424980746,1781367084000,-151.0,0.00032877,7]
[424980732,1781367084000,-151.0,0.00032877,7]
[424980806,1781367085000,-1208.006698,0.00032877,7]
[424980813,1781367085000,-182.465983,0.00032877,7]
[424980804,1781367085000,-182.465986,0.00032877,7]
[424980805,1781367085000,-182.465986,0.00032877,7]
[424980803,1781367085000,-182.465986,0.00032877,7]
[424980800,1781367085000,-182.465986,0.00032877,7]
[424980799,1781367085000,-182.465986,0.00032877,7]
[424980797,1781367085000,-182.465986,0.00032877,7]
[424980798,1781367085000,-182.465986,0.00032877,7]
[424980807,1781367085000,-182.465986,0.00032877,7]
[424980801,1781367085000,-182.465986,0.00032877,7]
[424980814,1781367085000,-1208.006698,0.00032877,7]
[424980820,1781367085000,-1208.006698,0.00032877,7]
[424980812,1781367085000,-1208.006698,0.00032877,7]
[424980811,1781367085000,-182.465986,0.00032877,7]
[424980809,1781367085000,-182.465986,0.00032877,7]
[424980810,1781367085000,-1208.006698,0.00032877,7]
[424980817,1781367085000,-1208.006698,0.00032877,7]
[424980826,1781367085000,-1208.006698,0.00032877,7]
[424980815,1781367085000,-1208.006698,0.00032877,7]
[424980816,1781367085000,-1208.006698,0.00032877,7]
[424980818,1781367085000,-1208.006698,0.00032877,7]
[424980819,1781367085000,-1208.006698,0.00032877,7]
[424980796,1781367085000,-182.465986,0.00032877,7]
[424980808,1781367085000,-1208.006698,0.00032877,7]
[424980794,1781367085000,-182.465986,0.00032877,7]
[424980770,1781367085000,-250.625359,0.00032877,7]
[424980793,1781367085000,-182.465986,0.00032877,7]
[424980821,1781367085000,-1208.006698,0.00032877,7]
[424980771,1781367085000,-250.625359,0.00032877,7]
[424980777,1781367085000,-151.0,0.00032877,7]
[424980775,1781367085000,-200.09372,0.00032877,7]
[424980779,1781367085000,-151.0,0.00032877,7]
[424980772,1781367085000,-250.625359,0.00032877,7]
[424980773,1781367085000,-250.625359,0.00032877,7]
[424980769,1781367085000,-250.625359,0.00032877,7]
[424980774,1781367085000,-250.625355,0.00032877,7]
[424980778,1781367085000,-151.0,0.00032877,7]
[424980782,1781367085000,-151.0,0.00032877,7]
[424980795,1781367085000,-182.465986,0.00032877,7]
[424980780,1781367085000,-151.0,0.00032877,7]
[424980783,1781367085000,-151.0,0.00032877,7]
[424980787,1781367085000,-151.0,0.00032877,7]
[424980784,1781367085000,-151.0,0.00032877,7]
[424980786,1781367085000,-259.501073,0.00032877,7]
[424980781,1781367085000,-151.0,0.00032877,7]
[424980790,1781367085000,-182.465986,0.00032877,7]
[424980789,1781367085000,-214.060494,0.00032877,7]
[424980788,1781367085000,-151.0,0.00032877,7]
[424980791,1781367085000,-182.465986,0.00032877,7]
[424980792,1781367085000,-182.465986,0.00032877,7]
[424980802,1781367085000,-182.465986,0.00032877,7]
[424980785,1781367085000,-213.909511,0.00032877,7]
[424980822,1781367085000,-1208.006698,0.00032877,7]
[424980776,1781367085000,-151.0,0.00032877,7]
[424980825,1781367085000,-1208.006698,0.00032877,7]
[424980851,1781367085000,-1112.764166,0.00032877,7]
[424980856,1781367085000,-2091.311883,0.00032877,7]
[424980852,1781367085000,-1112.764166,0.00032877,7]
[424980855,1781367085000,-2091.311883,0.00032877,7]
[424980858,1781367085000,-2091.311883,0.00032877,7]
[424980867,1781367085000,-2091.311883,0.00032877,7]
[424980868,1781367085000,-2091.311883,0.00032877,7]
[424980861,1781367085000,-2091.311883,0.00032877,7]
[424980860,1781367085000,-2091.311883,0.00032877,7]
[424980859,1781367085000,-2091.311883,0.00032877,7]
[424980865,1781367085000,-2091.311883,0.00032877,7]
[424980854,1781367085000,-2091.311883,0.00032877,7]
[424980866,1781367085000,-2091.311883,0.00032877,7]
[424980864,1781367085000,-2091.311883,0.00032877,7]
[424980863,1781367085000,-2091.311883,0.00032877,7]
[424980872,1781367085000,-2091.311883,0.00032877,7]
[424980870,1781367085000,-154.839499,0.00032877,7]
[424980869,1781367085000,-2091.311883,0.00032877,7]
[424980876,1781367085000,-151.0,0.00032877,7]
[424980875,1781367085000,-178.366787,0.00032877,7]
[424980877,1781367085000,-151.0,0.00032877,7]
[424980873,1781367085000,-2091.311882,0.00032877,7]
[424980871,1781367085000,-2091.311883,0.00032877,7]
[424980874,1781367085000,-288.42706,0.00032877,7]
[424980862,1781367085000,-2091.311883,0.00032877,7]
[424980853,1781367085000,-2091.311883,0.00032877,7]
[424980878,1781367085000,-203.837191,0.00032877,7]
[424980850,1781367085000,-1112.764166,0.00032877,7]
[424980857,1781367085000,-2091.311883,0.00032877,7]
[424980823,1781367085000,-1208.006698,0.00032877,7]
[424980827,1781367085000,-1208.006698,0.00032877,7]
[424980829,1781367085000,-1208.006694,0.00032877,7]
[424980833,1781367085000,-1112.764166,0.00032877,7]
[424980830,1781367085000,-151.0,0.00032877,7]
[424980832,1781367085000,-155.11399,0.00032877,7]
[424980831,1781367085000,-151.0,0.00032877,7]
[424980835,1781367085000,-1112.764166,0.00032877,7]
[424980834,1781367085000,-1112.764166,0.00032877,7]
[424980828,1781367085000,-1208.006698,0.00032877,7]
[424980836,1781367085000,-1112.764166,0.00032877,7]
[424980824,1781367085000,-1208.006698,0.00032877,7]
[424980845,1781367085000,-1112.764166,0.00032877,7]
[424980841,1781367085000,-1112.764166,0.00032877,7]
[424980849,1781367085000,-1112.764166,0.00032877,7]
[424980847,1781367085000,-1112.764166,0.00032877,7]
[424980848,1781367085000,-1112.764166,0.00032877,7]
[424980839,1781367085000,-1112.764166,0.00032877,7]
[424980844,1781367085000,-1112.764166,0.00032877,7]
[424980837,1781367085000,-1112.764166,0.00032877,7]
[424980838,1781367085000,-1112.764166,0.00032877,7]
[424980842,1781367085000,-1112.764166,0.00032877,7]
[424980846,1781367085000,-1112.764166,0.00032877,7]
[424980840,1781367085000,-1112.764166,0.00032877,7]
[424980843,1781367085000,-1112.764166,0.00032877,7]
[424980910,1781367086000,-518.5,0.00032962,30]
[424980918,1781367086000,-205.04995436,0.00032964,30]
[424980911,1781367086000,-742.84235072,0.00032964,50]
[424980917,1781367086000,-690.84003602,0.00032964,30]
[424980900,1781367086000,-150.0,0.00032955,2]
[424980920,1781367086000,-151.0,0.00032964,30]
[424980907,1781367086000,-156.587,0.00032962,30]
[424980903,1781367086000,-500.0,0.00032955,2]
[424980919,1781367086000,-151.0,0.00032964,30]
[424980914,1781367086000,-53524.75392322,0.00032964,10]
[424980922,1781367086000,-3111.0,0.00032964,30]
[424980912,1781367086000,-5610.48365362,0.00032964,10]
[424980913,1781367086000,-1127.31886715,0.00032964,30]
[424980916,1781367086000,-151.0,0.00032964,30]
[424980921,1781367086000,-200.0,0.00032964,30]
[424980909,1781367086000,-3000.0,0.00032962,30]
[424980927,1781367086000,-151.0,0.00032964,30]
[424980923,1781367086000,-690.84003602,0.00032964,30]
[424980929,1781367086000,-3187.64667471,0.00032964,30]
[424980928,1781367086000,-200.0,0.00032964,30]
[424980925,1781367086000,-151.0,0.00032964,30]
[424980931,1781367086000,-156.587,0.00032964,30]
[424980926,1781367086000,-155.09624286,0.00032964,30]
[424980915,1781367086000,-3000.0,0.00032964,30]
[424980908,1781367086000,-272.93901,0.00032962,30]
[424980899,1781367086000,-150.0,0.00032955,2]
[424980901,1781367086000,-290.80986039,0.00032955,2]
[424980924,1781367086000,-151.0,0.00032964,30]
[424980880,1781367086000,-151.0,0.00032877,7]
[424980879,1781367086000,-151.0,0.00032877,7]
[424980882,1781367086000,-275.427492,0.00032877,7]
[424980881,1781367086000,-151.0,0.00032877,7]
[424980883,1781367086000,-167.75756249,0.00032877,2]
[424980884,1781367086000,-1000.0,0.00032877,120]
[424980888,1781367086000,-500.0,0.00032877,2]
[424980886,1781367086000,-500.0,0.00032877,2]
[424980887,1781367086000,-500.0,0.00032877,2]
[424980885,1781367086000,-500.0,0.00032877,2]
[424980889,1781367086000,-500.0,0.00032877,2]
[424980890,1781367086000,-500.0,0.00032877,2]
[424980892,1781367086000,-423.906562,0.00032894,120]
[424980894,1781367086000,-2060.19,0.000329,120]
[424980893,1781367086000,-226.14,0.000329,120]
[424980898,1781367086000,-298.38688076,0.00032925,120]
[424980891,1781367086000,-431.6355116,0.00032877,2]
[424980895,1781367086000,-2000.0,0.000329,120]
[424980896,1781367086000,-2869.45162694,0.000329,120]
[424980902,1781367086000,-500.0,0.00032955,2]
[424980906,1781367086000,-205.04995436,0.00032962,30]
[424980905,1781367086000,-509.18876472,0.00032955,2]
[424980904,1781367086000,-500.0,0.00032955,2]
[424980897,1781367086000,-418.3,0.000329,120]
[424980930,1781367086000,-690.84003602,0.00032964,30]
[424980932,1781367086000,-151.0,0.00032964,30]
[424980962,1781367086000,-151.0,0.00032964,30]
[424980957,1781367086000,-151.0,0.00032964,30]
[424980960,1781367086000,-500.0,0.00032964,30]
[424980964,1781367086000,-500.0,0.00032964,30]
[424980965,1781367086000,-200.0,0.00032964,30]
[424980967,1781367086000,-160.0,0.00032964,30]
[424980966,1781367086000,-500.0,0.00032964,30]
[424980968,1781367086000,-174.61919141,0.00032964,30]
[424980971,1781367086000,-151.0,0.00032964,30]
[424980970,1781367086000,-690.84003602,0.00032964,30]
[424980974,1781367086000,-151.0,0.00032964,30]
[424980973,1781367086000,-151.0,0.00032964,30]
[424980972,1781367086000,-250.0,0.00032964,30]
[424980975,1781367086000,-160.99452017,0.00032964,30]
[424980976,1781367086000,-500.0,0.00032964,30]
[424980977,1781367086000,-500.0,0.00032964,30]
[424980981,1781367086000,-1000.0,0.00032964,30]
[424980982,1781367086000,-151.0,0.00032964,30]
[424980980,1781367086000,-520.0,0.00032964,30]
[424980978,1781367086000,-500.0,0.00032964,30]
[424980979,1781367086000,-155.09624286,0.00032964,30]
[424980983,1781367086000,-156.587,0.00032964,30]
[424980933,1781367086000,-151.0,0.00032964,30]
[424980958,1781367086000,-151.0,0.00032964,30]
[424980959,1781367086000,-3000.0,0.00032964,30]
[424980969,1781367086000,-160.13511027,0.00032964,30]
[424980961,1781367086000,-1000.0,0.00032964,30]
[424980934,1781367086000,-151.0,0.00032964,30]
[424980956,1781367086000,-152.0,0.00032964,30]
[424980938,1781367086000,-162.380719,0.00032964,30]
[424980935,1781367086000,-155.09624286,0.00032964,30]
[424980941,1781367086000,-272.93901,0.00032964,30]
[424980940,1781367086000,-160.99452017,0.00032964,30]
[424980936,1781367086000,-200.0,0.00032964,30]
[424980937,1781367086000,-151.0,0.00032964,30]
[424980943,1781367086000,-500.0,0.00032964,30]
[424980942,1781367086000,-155.09624286,0.00032964,30]
[424980946,1781367086000,-200.0,0.00032964,30]
[424980945,1781367086000,-151.0,0.00032964,30]
[424980939,1781367086000,-690.84003602,0.00032964,30]
[424980963,1781367086000,-155.09624286,0.00032964,30]
[424980949,1781367086000,-160.13511027,0.00032964,30]
[424980948,1781367086000,-151.0,0.00032964,30]
[424980951,1781367086000,-690.84003602,0.00032964,30]
[424980947,1781367086000,-279.60099687,0.00032964,30]
[424980950,1781367086000,-168.3888056,0.00032964,30]
[424980953,1781367086000,-250.0,0.00032964,30]
[424980955,1781367086000,-156.587,0.00032964,30]
[424980954,1781367086000,-151.0,0.00032964,30]
[424980944,1781367086000,-1000.0,0.00032964,30]
[424980952,1781367086000,-500.0,0.00032964,30]
[424981020,1781367087000,-155.09624286,0.00032964,30]
[424981021,1781367087000,-1000.0,0.00032964,30]
[424981018,1781367087000,-168.3888056,0.00032964,30]
[424981019,1781367087000,-151.0,0.00032964,30]
[424981012,1781367087000,-9182.71778339,0.00032964,30]
[424981013,1781367087000,-537.6845,0.00032964,30]
[424981017,1781367087000,-250.0,0.00032964,30]
[424981009,1781367087000,-160.0,0.00032964,30]
[424981027,1781367087000,-152.0,0.00032964,30]
[424981016,1781367087000,-160.99452017,0.00032964,30]
[424981025,1781367087000,-151.0,0.00032964,30]
[424981034,1781367087000,-557.5788265,0.00032964,30]
[424981023,1781367087000,-500.0,0.00032964,30]
[424981024,1781367087000,-151.0,0.00032964,30]
[424981022,1781367087000,-500.0,0.00032964,30]
[424981028,1781367087000,-500.0,0.00032964,30]
[424981033,1781367087000,-151.0,0.00032964,30]
[424981029,1781367087000,-151.0,0.00032964,30]
[424981030,1781367087000,-168.3888056,0.00032964,30]
[424981031,1781367087000,-151.0,0.00032964,30]
[424981039,1781367087000,-559.19188,0.00032964,30]
[424981035,1781367087000,-200.0,0.00032964,30]
[424981011,1781367087000,-162.380719,0.00032964,30]
[424981026,1781367087000,-3500.0,0.00032964,30]
[424981007,1781367087000,-162.380719,0.00032964,30]